bitfinex/quotes_ETHUSD_20251116
["timestamp","ask_amount","ask_price","bid_price","bid_amount"]
[1763295775230,0.2938672,3179.2,3179.1,1.1389]
[1763295775567,0.2938672,3179.3,3179.1,1.1389]
[1763295775784,0.2938672,3179.2,3179.1,0.1926]
[1763295775990,0.405504,3179.3,3179.1,0.1926]
[1763295776195,0.2938672,3179.2,3179.1,0.1926]
[1763295776391,0.405504,3179.3,3179.1,0.1926]
[1763295776595,0.2938672,3179.2,3179.1,0.1926]
[1763295776799,0.2938672,3179.4,3179.1,0.1926]
[1763295776973,0.2938672,3179.3,3179.2,0.4663]
[1763295777375,0.2938672,3179.3,3179.2,0.9463]
[1763295779102,0.6993712,3179.3,3179.2,0.9463]
[1763295781285,0.6993712,3179.3,3179.2,0.48]
[1763295781488,0.6993712,3179.3,3179.1,0.001]
[1763295781695,0.2938672,3179.2,3179.1,0.001]
[1763295781891,0.2938672,3179.2,3179.1,0.4673]
[1763295782086,5.697112,3179.2,3179.1,0.001]
[1763295782382,7.68309499,3179.2,3179.1,0.001]
[1763295782579,8.81182454,3179.2,3179.1,0.001]
[1763295783881,13.98309499,3179.2,3179.1,0.001]
[1763295784078,15.67918929,3179.2,3179.1,0.001]
[1763295784310,13.98309499,3179.2,3179.1,0.001]
[1763295784690,14.10918865,3179.2,3179.1,0.001]
[1763295785293,15.52718865,3179.2,3179.1,0.001]
[1763295787000,4.8582448,3178.9,3178.8,0.001]
[1763295787202,14.04862893,3178.9,3178.8,0.001]
[1763295787447,14.54822893,3178.9,3178.8,0.001]
[1763295787651,14.6743377,3178.9,3178.8,0.001]
[1763295788202,12.97904931,3178.9,3178.8,0.001]
[1763295788408,14.40095576,3178.9,3178.8,0.001]
[1763295788943,16.98399702,3178.9,3178.8,0.001]
[1763295789102,11.1582448,3178.8,3178.7,0.001]
[1763295789433,4.8582448,3178.5,3178.4,0.001]
[1763295789622,0.405504,3178.3,3177.5,0.001]
[1763295789824,6.32144054,3178.2,3177.5,0.001]
[1763295790028,12.74759465,3178.2,3177.5,0.001]
[1763295790210,4.8582448,3178.1,3177.5,0.001]
[1763295790537,7.79169819,3177.9,3177.5,0.001]
[1763295790741,4.8619448,3177.7,3177.5,0.001]
[1763295790926,5.83374054,3177.7,3177.5,0.001]
[1763295791234,4.8582448,3177.6,3177.5,0.001]
[1763295791413,7.79614054,3177.6,3177.5,0.001]
[1763295791614,8.57575459,3177.6,3177.5,0.001]
[1763295792343,8.70193496,3177.6,3177.5,0.001]
[1763295793137,8.97284826,3177.6,3177.5,0.001]
[1763295793328,4.42933096,3177.6,3177.5,0.001]
[1763295793517,5.32586235,3177.6,3177.5,0.001]
[1763295793716,4.48165298,3177.6,3177.5,0.001]
[1763295793913,4.97675298,3177.6,3177.5,0.001]
[1763295794117,5.32561077,3177.6,3177.5,0.001]
[1763295794328,5.73111477,3177.6,3177.5,0.001]
[1763295794517,5.67811477,3177.6,3177.5,0.001]
[1763295794719,4.83415698,3177.6,3177.5,0.001]
[1763295795319,5.36265698,3177.6,3177.5,0.001]
[1763295795519,11.66265698,3177.6,3177.5,0.001]
[1763295796749,12.50661477,3177.6,3177.5,0.001]
[1763295797449,11.66265698,3177.6,3177.5,0.001]
[1763295799325,14.98165698,3177.6,3177.5,0.001]
[1763295801839,11.1572448,3177.4,3177.1,0.001]
[1763295802039,13.65082826,3177.4,3177.1,0.001]
[1763295802248,14.12182826,3177.4,3177.1,0.001]
[1763295803676,14.12104792,3177.4,3177.1,0.001]
[1763295804178,15.53904792,3177.4,3177.1,0.001]
[1763295804337,15.53903053,3177.4,3177.1,0.001]
[1763295804741,15.24663904,3177.4,3177.1,0.001]
[1763295806381,4.8582448,3177.1,3177.0,0.001]
[1763295806680,6.9419671,3177.1,3177.0,0.001]
[1763295806840,7.4129671,3177.1,3177.0,0.001]
[1763295807047,7.56924397,3177.1,3177.0,0.001]
[1763295807238,6.39211713,3177.1,3177.0,0.001]
[1763295807899,6.86311713,3177.1,3177.0,0.001]
[1763295808185,6.86311713,3177.1,3176.8,0.001]
[1763295808384,6.86311713,3177.1,3172.9,0.1855]
[1763295808385,4.9150448,3176.9,3172.9,0.1855]
[1763295808546,4.9150448,3176.9,3174.7,0.4588]
[1763295808547,6.00663902,3176.7,3174.7,0.4588]
[1763295808850,3.724504,3175.1,3174.5,0.6443]
[1763295809054,0.405504,3174.9,3174.5,0.6443]
[1763295809299,1.1337408,3174.8,3174.5,0.6443]
[1763295809438,0.29279461,3174.7,3174.5,0.6443]
[1763295809642,0.405504,3174.8,3172.9,0.1855]
[1763295809643,0.69829861,3174.8,3174.1,0.4588]
[1763295809863,0.29279461,3174.7,3174.2,0.1855]
[1763295810074,0.69829861,3174.8,3174.2,0.6443]
[1763295810265,0.69829861,3174.8,3172.9,0.1855]
[1763295810266,0.405504,3174.2,3173.7,0.4588]
[1763295810672,0.405504,3174.0,3173.3,0.1855]
[1763295810843,0.69829861,3174.0,3173.3,0.6443]
[1763295811042,0.405504,3173.8,3173.3,0.5943]
[1763295811291,0.69829861,3173.8,3173.4,0.4588]
[1763295811587,0.405504,3173.8,3173.7,0.4625]
[1763295811766,0.69716019,3173.8,3173.7,0.4625]
[1763295812156,1.1337408,3173.7,3173.3,0.1355]
[1763295812362,0.9332641,3173.6,3173.3,0.1355]
[1763295812557,0.9332641,3173.6,3172.9,0.6443]
[1763295812792,0.405504,3173.4,3172.9,0.6443]
[1763295813088,0.405504,3173.4,3173.0,0.4588]
[1763295813292,0.405504,3173.4,3172.8,0.1855]
[1763295813585,0.405504,3173.2,3172.8,0.1855]
[1763295814086,0.405504,3173.2,3172.9,0.4588]
[1763295814258,0.69652847,3173.2,3173.0,0.001]
[1763295814449,0.405504,3173.2,3173.0,0.001]
[1763295814781,0.887704,3173.5,3173.0,0.001]
[1763295814983,0.405504,3173.3,3173.0,0.001]
[1763295815184,0.524104,3173.1,3173.0,0.001]
[1763295815590,0.405504,3173.1,3173.0,0.4511]
[1763295816152,0.405504,3173.1,3173.0,0.001]
[1763295816784,0.405504,3173.1,3173.0,0.9121]
[1763295818584,0.405504,3173.1,3173.0,0.4511]
[1763295819280,0.405504,3173.1,3173.0,0.9121]
[1763295822057,6.299,3173.6,3173.0,0.9121]
[1763295822290,6.299,3173.6,3173.5,0.6352]
[1763295822491,7.4327408,3173.6,3173.5,0.6352]
[1763295822686,6.704504,3173.6,3173.5,1.0962]
[1763295822867,6.299,3173.6,3173.5,1.0962]
[1763295823267,7.4327408,3173.6,3173.5,1.0962]
[1763295823487,7.8382448,3173.6,3173.5,1.0962]
[1763295823874,7.8382448,3173.6,3173.5,0.6352]
[1763295824197,7.8382448,3173.6,3173.5,1.0962]
[1763295824367,6.299,3174.6,3173.5,1.0962]
[1763295824573,0.29062078,3174.5,3173.6,0.461]
[1763295824886,1.42436158,3174.5,3173.6,0.461]
[1763295825089,0.29062078,3174.4,3173.6,0.461]
[1763295825298,0.405504,3174.3,3173.6,0.461]
[1763295825498,0.405504,3174.3,3173.5,0.1851]
[1763295825499,0.887704,3174.3,3173.5,0.1851]
[1763295825794,1.5392448,3174.1,3173.5,0.1851]
[1763295825982,1.5392448,3174.1,3173.2,0.1851]
[1763295825983,0.405504,3173.9,3173.2,0.1851]
[1763295826314,1.5392448,3173.7,3173.2,0.1851]
[1763295826593,1.5392448,3173.7,3173.1,0.461]
[1763295826759,1.5392448,3173.7,3173.1,0.6461]
[1763295827407,0.405504,3173.4,3173.2,0.461]
[1763295827867,6.299,3173.6,3173.3,0.4501]
[1763295828080,6.299,3173.6,3173.5,0.4501]
[1763295828280,7.4327408,3173.6,3173.5,0.4501]
[1763295828485,7.4327408,3173.6,3173.5,0.9111]
[1763295830329,1.1337408,3173.5,3173.1,0.1851]
[1763295830535,0.69717479,3173.4,3173.0,0.001]
[1763295831473,0.405504,3173.2,3173.0,0.001]
[1763295831696,0.29167079,3173.2,3173.1,0.1851]
[1763295831900,0.405504,3173.3,3173.1,0.6352]
[1763295832100,0.405504,3173.3,3173.2,0.9111]
[1763295832271,0.69717479,3173.3,3173.2,0.9111]
[1763295832616,0.58859556,3173.3,3173.2,0.9111]
[1763295832914,0.88026635,3173.3,3173.2,0.9111]
[1763295833279,1.33946635,3173.3,3173.0,0.001]
[1763295833477,0.29167079,3173.2,3173.1,0.6461]
[1763295833886,0.29167079,3173.2,3173.1,1.0962]
[1763295834709,3.724504,3173.1,3173.0,0.001]
[1763295834879,1.21216635,3173.1,3173.0,0.001]
[1763295835080,0.69717479,3173.1,3173.0,0.9121]
[1763295835973,0.69717479,3173.1,3173.0,0.4511]
[1763295836179,0.69717479,3173.1,3173.0,0.001]
[1763295836621,1.83091559,3173.1,3173.0,0.001]
[1763295836914,8.37621559,3173.1,3173.0,0.001]
[1763295837101,12.61843715,3173.1,3173.0,0.4511]
[1763295837316,9.29943715,3173.1,3173.0,0.9121]
[1763295837705,8.12991559,3173.1,3173.0,0.9121]
[1763295838078,8.80632125,3173.1,3173.0,0.9121]
[1763295838829,9.26552125,3173.1,3173.0,0.001]
[1763295838982,8.80632125,3173.1,3173.0,0.001]
[1763295839290,9.26362125,3173.1,3173.0,0.001]
[1763295839490,10.60620371,3173.1,3173.0,0.001]
[1763295839689,13.92520371,3173.1,3173.0,0.001]
[1763295839894,15.03940702,3173.1,3173.0,0.001]
[1763295840416,14.19620371,3173.1,3173.0,0.001]
[1763295841088,9.74339971,3173.1,3173.0,0.9121]
[1763295841290,8.80632125,3173.1,3173.0,0.001]
[1763295841597,8.80632125,3173.1,3173.0,0.4511]
[1763295841799,8.80632125,3173.1,3173.0,0.9121]
[1763295842024,8.80632125,3173.1,3173.0,0.4511]
[1763295842191,12.37162125,3173.1,3173.0,0.001]
[1763295842384,14.22131832,3173.1,3173.0,0.001]
[1763295842819,15.91023162,3173.1,3173.0,0.0002]
[1763295842985,14.22131832,3173.1,3173.0,0.0002]
[1763295843194,15.91309337,3173.1,3173.0,0.0002]
[1763295843430,17.33309337,3173.1,3173.0,0.0002]
[1763295843594,15.43319337,3173.1,3173.0,0.0002]
[1763295843929,13.74141832,3173.1,3173.0,0.0002]
[1763295844500,14.86903339,3173.1,3173.0,0.0002]
[1763295844707,15.32923339,3173.1,3173.0,0.0002]
[1763295846394,14.86903339,3173.1,3173.0,0.0002]
[1763295846747,13.49511832,3173.1,3173.0,0.0002]
[1763295846901,14.34057678,3173.1,3173.0,0.0002]
[1763295848247,14.60877678,3173.1,3173.0,0.0002]
[1763295849027,14.31710599,3173.1,3173.0,0.0002]
[1763295849406,14.31910599,3173.1,3173.0,0.0002]
[1763295849600,13.47364753,3173.1,3173.0,0.0002]
[1763295852435,14.6012626,3173.1,3173.0,0.0002]
[1763295852634,15.0594626,3173.1,3173.0,0.0002]
[1763295854915,13.93184753,3173.1,3173.0,0.0002]
[1763295855602,4.8582448,3172.9,3172.6,0.001]
[1763295855804,5.0460448,3172.7,3172.3,0.001]
[1763295856004,3.724504,3172.1,3170.5,0.4669]
[1763295856242,3.724504,3171.5,3170.5,0.4669]
[1763295856427,1.5392448,3170.9,3170.5,0.4669]
[1763295856614,4.8582448,3170.9,3169.0,0.196]
[1763295856818,0.405504,3170.7,3169.9,0.652]
[1763295857140,0.405504,3170.5,3169.9,0.652]
[1763295857343,0.405504,3170.3,3170.0,0.4669]
[1763295857834,0.405504,3170.6,3170.2,0.4643]
[1763295858040,0.405504,3171.1,3170.0,0.4669]
[1763295858235,0.59785228,3171.1,3170.0,0.4669]
[1763295858400,0.67364419,3171.3,3171.0,0.4643]
[1763295858602,0.67364419,3171.3,3171.2,0.6603]
[1763295858823,0.405504,3171.3,3171.2,0.6603]
[1763295859016,1.59062466,3171.4,3171.2,1.1272]
[1763295859216,1.99612866,3171.4,3171.3,0.4643]
[1763295860106,2.66960511,3171.4,3171.3,0.4643]
[1763295860306,1.99612866,3171.4,3171.3,0.4643]
[1763295860512,0.405504,3171.4,3171.3,0.4643]
[1763295860840,0.84433458,3171.8,3171.3,0.4643]
[1763295860841,1.1337408,3171.8,3171.3,0.9312]
[1763295861042,1.80710714,3171.8,3171.7,0.4643]
[1763295861246,1.1337408,3171.8,3171.7,0.4643]
[1763295861428,1.5392448,3171.8,3171.7,0.4643]
[1763295861631,0.9408036,3171.8,3171.7,0.9312]
[1763295861946,0.405504,3171.8,3171.7,0.4643]
[1763295862122,3.39907538,3172.4,3171.7,0.9312]
[1763295862321,0.405504,3172.2,3171.9,0.4643]
[1763295862651,0.67332716,3172.2,3171.9,0.4643]
[1763295862953,3.319,3172.3,3171.3,0.4669]
[1763295863158,4.7846408,3172.2,3171.3,0.4669]
[1763295863654,0.405504,3172.1,3171.3,0.4669]
[1763295864825,0.405504,3171.8,3171.3,0.4669]
[1763295865162,1.4656408,3172.2,3171.3,0.4669]
[1763295865442,1.1337408,3172.2,3172.1,0.6603]
[1763295865744,1.57901488,3172.2,3172.1,0.4643]
[1763295866124,4.89801488,3172.2,3172.1,0.4643]
[1763295866322,4.89801488,3172.2,3172.1,0.6603]
[1763295866529,3.319,3172.5,3172.1,1.1272]
[1763295866728,1.1337408,3172.4,3172.2,0.4669]
[1763295866930,0.002,3172.3,3172.2,0.4669]
[1763295867122,0.407504,3172.3,3172.2,0.4669]
[1763295867338,0.407504,3172.3,3172.2,0.9312]
[1763295868147,0.002,3172.3,3172.2,0.9312]
[1763295872262,0.002,3172.7,3172.2,0.9312]
[1763295872440,0.002,3172.7,3172.6,0.4643]
[1763295872819,0.002,3172.7,3172.6,0.9312]
[1763295884852,0.002,3173.0,3172.6,0.9312]
[1763295885085,0.002,3173.0,3172.9,0.469]
[1763295885516,0.002,3173.0,3172.9,0.9518]
[1763295891025,0.002,3173.0,3172.9,0.469]
[1763295892846,0.002,3173.0,3172.9,0.9518]
[1763295893516,0.002,3173.0,3172.9,0.469]
[1763295893831,0.002,3173.0,3172.9,0.9518]
[1763295900329,0.002,3173.0,3172.9,0.469]
[1763295900549,0.002,3173.0,3172.9,0.9518]
[1763295904240,0.002,3173.0,3172.9,0.469]
[1763295904445,0.1133,3173.0,3172.6,0.4838]
[1763295906363,0.1133,3173.0,3172.6,0.001]
[1763295906666,0.5663,3173.0,3172.6,0.001]
[1763295908559,0.1133,3173.0,3172.6,0.001]
[1763295908725,0.1133,3173.0,3172.6,0.4565]
[1763295909057,0.29497622,3172.9,3172.6,0.4565]
[1763295909255,0.29497622,3172.8,3172.6,0.4565]
[1763295909454,0.002,3173.0,3172.6,0.4565]
[1763295909635,0.29499126,3172.9,3172.7,0.4745]
[1763295909825,0.29499126,3172.8,3172.7,0.4745]
[1763295910863,0.29499126,3172.8,3172.6,0.001]
[1763295911160,0.29499126,3172.7,3172.6,0.001]
[1763295911456,0.36529126,3172.7,3172.6,0.001]
[1763295912019,0.29499126,3172.7,3172.6,0.001]
[1763295913062,0.77079526,3172.7,3172.6,0.001]
[1763295914959,0.70049526,3172.7,3172.6,0.001]
[1763295916667,0.70049526,3172.7,3172.6,0.4651]
[1763295917028,0.29499126,3172.7,3172.6,0.9588]
[1763295917428,0.29499126,3172.7,3172.6,0.4651]
[1763295918047,0.37679126,3172.7,3172.6,0.001]
[1763295918254,0.29499126,3172.7,3172.6,0.001]
[1763295918440,0.29499126,3172.7,3172.6,0.4651]
[1763295920373,0.002,3173.0,3172.6,0.99031988]
[1763295920374,0.29499126,3172.9,3172.6,0.99031988]
[1763295920528,0.29499126,3172.9,3172.6,0.4947]
[1763295920733,0.29499126,3172.9,3172.8,0.4641]
[1763295921160,0.29499126,3172.9,3172.8,0.9578]
[1763295921544,0.002,3173.0,3172.8,0.9578]
[1763295921747,0.002,3173.0,3172.9,0.9578]
[1763295924955,0.4943,3173.0,3172.6,0.001]
[1763295925483,0.5557,3173.0,3172.6,0.001]
[1763295925651,0.6887,3172.7,3172.6,0.001]
[1763295925980,0.98313477,3172.7,3172.6,0.001]
[1763295926464,1.04593477,3172.7,3172.6,0.001]
[1763295927268,1.45143877,3172.7,3172.6,0.001]
[1763295929246,1.60921312,3172.7,3172.6,0.001]
[1763295929714,1.35001312,3172.7,3172.6,0.001]
[1763295930282,1.60721312,3172.7,3172.6,0.001]
[1763295932076,2.28592354,3172.7,3172.6,0.001]
[1763295933293,0.85771312,3172.7,3172.6,0.001]
[1763295933494,0.93951312,3172.7,3172.6,0.001]
[1763295934185,1.40773877,3172.7,3172.6,0.001]
[1763295934583,1.53404904,3172.7,3172.6,0.001]
[1763295934915,1.06624904,3172.7,3172.6,0.001]
[1763295935117,1.53404904,3172.7,3172.6,0.001]
[1763295939413,4.85304904,3172.7,3172.6,0.001]
[1763295939628,3.34900896,3172.7,3172.6,0.001]
[1763295943368,6.66800896,3172.7,3172.6,0.001]
[1763295943505,5.3269448,3172.6,3172.3,0.001]
[1763295943711,4.9429448,3172.4,3172.3,0.001]
[1763295943912,5.91702434,3172.4,3172.3,0.001]
[1763295944232,7.64111766,3172.4,3172.3,0.001]
[1763295945976,1.1004313,3172.4,3172.3,0.4759]
[1763295946161,0.29486042,3172.4,3172.3,0.4759]
[1763295946362,0.29486042,3172.4,3172.3,0.957]
[1763295946674,0.29486042,3172.4,3172.3,0.4759]
[1763295947771,0.29486042,3172.4,3172.3,0.957]
[1763295948275,0.29486042,3172.5,3172.3,0.957]
[1763295948482,0.29486042,3172.4,3172.3,0.957]
[1763295948650,0.405504,3172.5,3172.3,0.001]
[1763295948852,0.29486042,3172.4,3172.3,0.957]
[1763295949049,0.78506442,3172.4,3172.3,0.001]
[1763295949252,1.24996442,3172.4,3172.3,0.001]
[1763295949559,2.57660373,3172.4,3172.3,0.001]
[1763295949762,3.25562441,3172.4,3172.3,0.001]
[1763295950877,6.57462441,3172.4,3172.3,0.001]
[1763295951459,2.70602441,3172.4,3172.3,0.4759]
[1763295952056,2.70602441,3172.4,3172.3,0.957]
[1763295952279,2.41116399,3172.4,3172.3,0.957]
[1763295952483,2.70600142,3172.4,3172.3,0.957]
[1763295954203,2.70600142,3172.4,3172.3,0.4759]
[1763295954407,2.70679169,3172.4,3172.3,0.4759]
[1763295956103,2.10838918,3172.4,3172.3,0.4759]
[1763295957106,2.51389318,3172.4,3172.3,0.4759]
[1763295958707,2.51389318,3172.4,3172.3,0.957]
[1763295959011,2.10838918,3172.4,3172.3,0.957]
[1763295959174,1.42857823,3172.4,3172.3,0.957]
[1763295962831,1.42857823,3172.4,3172.3,0.001]
[1763295963198,1.42857823,3172.4,3172.3,0.4759]
[1763295964123,0.29483743,3172.4,3172.3,0.957]
[1763295964323,0.002,3172.5,3172.3,0.957]
[1763295964498,0.002,3172.5,3172.4,0.9657]
[1763295967214,0.29724151,3172.5,3172.3,0.001]
[1763295967433,0.002,3172.5,3172.4,0.498]
[1763295967739,0.29724151,3172.5,3172.4,0.498]
[1763295967941,0.002,3172.5,3172.4,0.9657]
[1763295968144,0.29724151,3172.5,3172.4,0.9657]
[1763295968339,0.002,3172.5,3172.4,0.9657]
[1763295968552,0.29724151,3172.5,3172.4,0.9657]
[1763295968752,0.002,3172.5,3172.4,0.9657]
[1763295969111,0.4651,3172.5,3172.3,0.001]
[1763295969449,0.80534551,3172.4,3172.3,0.001]
[1763295969806,0.93167692,3172.4,3172.3,0.001]
[1763295970007,1.09739761,3172.4,3172.3,0.001]
[1763295970233,1.77728669,3172.4,3172.3,0.001]
[1763295971360,1.54635528,3172.4,3172.3,0.001]
[1763295971851,0.29524151,3172.4,3172.3,0.001]
[1763295973048,1.25714551,3172.4,3172.3,0.001]
[1763295973349,1.93692011,3172.4,3172.3,0.001]
[1763295973510,1.25714551,3172.4,3172.3,0.001]
[1763295973716,0.80534551,3172.4,3172.3,0.001]
[1763295974449,1.01726752,3172.4,3172.3,0.001]
[1763295975162,0.91266752,3172.4,3172.3,0.4653]
[1763295975366,1.38052011,3172.4,3172.3,0.4653]
[1763295975524,0.70076629,3172.4,3172.3,0.4653]
[1763295976665,0.29526229,3172.4,3172.3,0.9377]
[1763295976866,1.24842364,3172.4,3172.3,0.001]
[1763295977044,2.59072764,3172.4,3172.3,0.001]
[1763295977240,4.9762115,3172.4,3172.3,0.001]
[1763295977430,3.9361115,3172.4,3172.3,0.4653]
[1763295977759,2.97108169,3172.4,3172.3,0.001]
[1763295977962,3.08378169,3172.4,3172.3,0.001]
[1763295978127,2.97108169,3172.4,3172.3,0.001]
[1763295978327,3.08378169,3172.4,3172.3,0.001]
[1763295979387,2.97108169,3172.4,3172.3,0.001]
[1763295979568,3.36600822,3172.4,3172.3,0.001]
[1763295979997,3.47870822,3172.4,3172.3,0.001]
[1763295981694,3.36600822,3172.4,3172.3,0.001]
[1763295981908,2.10910579,3172.4,3172.3,0.4653]
[1763295982081,2.10910579,3172.4,3172.3,0.9377]
[1763295982082,0.97536499,3172.4,3172.3,0.9377]
[1763295982258,0.29526229,3172.4,3172.3,0.9377]
[1763295982464,0.002,3172.5,3172.3,0.9377]
[1763295982802,0.29726229,3172.5,3172.4,0.9367]
[1763295983006,0.002,3172.5,3172.4,0.9367]
[1763295983317,0.29726229,3172.5,3172.4,0.9367]
[1763295983513,0.002,3172.5,3172.4,0.9367]
[1763295983818,0.29726229,3172.5,3172.4,0.9367]
[1763295983955,0.002,3172.5,3172.4,0.9367]
[1763295984166,0.29726229,3172.5,3172.4,0.9367]
[1763295984414,0.002,3172.5,3172.4,0.9367]
[1763295984710,0.29726229,3172.5,3172.4,0.9367]
[1763295984870,0.002,3172.5,3172.4,0.4643]
[1763295985059,0.29726229,3172.5,3172.4,0.4643]
[1763295985259,0.407504,3172.5,3172.3,0.001]
[1763295985491,0.29526229,3172.4,3172.3,0.001]
[1763295985890,0.29526229,3172.4,3172.3,0.4653]
[1763295987490,0.70076629,3172.4,3172.3,0.9377]
[1763295987666,0.29526229,3172.4,3172.3,0.9377]
[1763295987859,0.002,3172.5,3172.3,0.9377]
[1763295988064,0.29726229,3172.5,3172.4,0.9367]
[1763295988289,0.002,3172.5,3172.4,0.9367]
[1763295989195,0.002,3172.5,3172.4,0.4643]
[1763295989402,0.29726229,3172.5,3172.4,0.4643]
[1763295989607,0.002,3172.5,3172.4,0.9367]
[1763295989834,0.29726229,3172.5,3172.4,0.9367]
[1763295989988,0.407504,3172.5,3172.4,0.4643]
[1763295990184,1.15956629,3172.5,3172.3,0.001]
[1763295990423,1.16816629,3172.4,3172.3,0.001]
[1763295990985,0.70076629,3172.4,3172.3,0.4653]
[1763295991185,0.70076629,3172.4,3172.3,0.001]
[1763295992009,0.70076629,3172.4,3172.3,0.9377]
[1763295992328,0.002,3172.5,3172.3,0.9377]
[1763295992510,0.002,3172.5,3172.4,0.9367]
[1763295992685,0.002,3172.7,3172.4,0.9367]
[1763295992891,0.002,3172.9,3172.6,0.4643]
[1763295993188,0.002,3172.9,3172.8,0.4643]
[1763295993592,0.002,3172.9,3172.8,0.9367]
[1763295996107,0.002,3173.0,3172.8,0.9367]
[1763295996290,0.002,3173.0,3172.3,0.03252286]
[1763295996291,0.002,3173.0,3172.9,0.969]
[1763296005379,0.002,3173.2,3172.9,0.969]
[1763296005545,0.002,3173.2,3173.1,0.6831]
[1763296005937,0.002,3173.2,3173.1,1.1565]
[1763296011776,0.002,3173.2,3173.1,1.18801492]
[1763296013884,0.002,3173.2,3173.1,1.1565]
[1763296015499,0.002,3173.2,3173.1,1.18801492]
[1763296015796,0.002,3173.4,3173.1,1.18801492]
[1763296015997,0.002,3173.4,3173.3,0.4956]
[1763296016384,0.002,3173.4,3173.3,0.969]
[1763296019269,0.002,3173.4,3173.3,0.4956]
[1763296019573,0.002,3173.4,3172.9,0.001]
[1763296019574,0.1108,3173.4,3172.9,0.001]
[1763296019871,0.1108,3173.4,3173.0,0.4734]
[1763296020274,0.002,3173.4,3173.0,0.4734]
[1763296020616,0.002,3173.4,3173.3,0.4956]
[1763296022307,0.002,3173.4,3173.3,0.969]
[1763296024514,0.002,3173.4,3172.9,0.0325169]
[1763296024515,0.4554,3173.4,3172.9,0.001]
[1763296024680,0.002,3173.4,3173.3,0.4884]
[1763296025071,0.002,3173.4,3173.3,0.951]
[1763296028320,0.002,3173.4,3173.3,0.4884]
[1763296029693,0.002,3173.4,3172.9,0.4636]
[1763296030014,0.002,3173.4,3173.3,0.4884]
[1763296030381,0.002,3173.4,3173.3,0.951]
[1763296031676,0.002,3173.4,3173.3,0.98251293]
[1763296031981,0.002,3173.4,3173.3,0.951]
[1763296034585,0.002,3173.4,3173.3,0.4884]
[1763296034788,0.002,3173.4,3173.1,0.001]
[1763296035015,0.002,3173.4,3173.3,0.4638]
[1763296035912,0.002,3173.4,3173.3,0.9488]
[1763296036355,0.1108,3173.4,3173.1,0.03251492]
[1763296036554,0.1108,3173.4,3173.1,0.001]
[1763296037922,0.0047,3173.2,3173.1,0.001]
[1763296038124,0.002,3173.4,3173.1,0.001]
[1763296038331,0.1088,3173.2,3173.1,0.001]
[1763296039351,0.002,3173.4,3173.1,0.4648]
[1763296039859,0.002,3173.4,3173.1,0.001]
[1763296040927,0.002,3173.4,3172.4,1.1337408]
[1763296041142,0.002,3173.4,3172.0,0.5]
[1763296041316,0.002,3173.4,3172.1,0.03152485]
[1763296043548,0.4774,3173.4,3172.1,0.03152485]
[1763296044835,0.4774,3173.4,3172.2,0.4774]
[1763296048059,0.002,3173.4,3172.2,0.50892386]
[1763296048227,0.002,3173.4,3172.3,0.53152286]
[1763296048751,0.002,3173.4,3172.4,0.4774]
[1763296049560,0.002,3173.4,3172.5,0.03152088]
[1763296050009,0.002,3173.4,3172.7,0.5]
[1763296050289,0.002,3173.4,3172.7,0.03151889]
[1763296050436,0.002,3173.4,3172.6,0.5]
[1763296052037,0.002,3173.4,3172.7,0.53151889]
[1763296052249,0.002,3173.4,3172.7,0.03151889]
[1763296052771,0.002,3173.4,3172.8,0.12622019]
[1763296053135,0.002,3173.4,3172.9,0.5315169]
[1763296054734,0.002,3173.4,3172.9,0.5]
[1763296055163,0.002,3173.4,3173.0,0.03151591]
[1763296055364,0.002,3173.4,3172.9,0.5315169]
[1763296055871,0.002,3173.4,3173.0,0.12621461]
[1763296064481,0.002,3173.4,3173.1,0.03151492]
[1763296065067,0.002,3173.4,3173.3,0.5]
[1763296065375,0.002,3173.4,3173.3,0.53151293]
[1763296065674,0.002,3173.4,3173.3,0.62620028]
[1763296065867,0.002,3173.4,3173.3,0.12620028]
[1763296066364,0.002,3173.4,3173.3,0.62620028]
[1763296066871,0.002,3173.4,3173.3,1.06321721]
[1763296068254,0.002,3173.4,3173.3,1.23131436]
[1763296072701,0.002,3173.4,3173.3,1.19980143]
[1763296075201,0.002,3173.4,3173.3,2.33354223]
[1763296076105,0.002,3173.4,3173.3,2.36505516]
[1763296077699,0.002,3173.4,3173.3,1.45955116]
[1763296077899,0.002,3173.4,3173.3,1.42803823]
[1763296078100,0.4864,3173.4,3173.3,1.42803823]
[1763296078304,0.967,3173.4,3173.3,1.25994108]
[1763296080796,0.002,3173.4,3173.3,1.25994108]
[1763296080995,0.4864,3173.4,3173.3,1.25994108]
[1763296081202,0.002,3173.4,3173.3,1.25994108]
[1763296081406,0.002,3173.4,3173.3,1.29145401]
[1763296081778,0.002,3173.4,3173.3,1.93908648]
[1763296081983,0.002,3173.4,3173.3,2.34459048]
[1763296084210,0.002,3173.4,3173.3,2.72774858]
[1763296084706,0.002,3173.5,3173.4,1.5392448]
[1763296084909,0.002,3173.5,3173.4,5.6620401]
[1763296085079,0.002,3173.5,3173.4,6.25784791]
[1763296085284,0.002,3173.5,3173.4,9.55033597]
[1763296085487,0.002,3173.5,3173.4,8.77489846]
[1763296086478,0.002,3173.5,3173.4,2.63598338]
[1763296086807,0.002,3173.5,3173.4,2.66749532]
[1763296087110,0.002,3173.5,3173.4,2.63598338]
[1763296087820,0.4605,3173.5,3173.4,1.09673858]
[1763296088051,0.4605,3173.5,3172.8,0.97558477]
[1763296088052,0.4585,3172.9,3172.8,0.97558477]